[Event "November 21 Early 2023"]
[Site "https://www.chess.com"]
[Date "2023.11.21"]
[Round "1"]
[White "Arslanov, Shamil"]
[Black "Perez Rodriguez, Jennifer"]
[Result "1-0"]
[Board "155"]
[TimeControl "180+1"]
[WhiteFideId "4192826"]
[BlackFideId "3507831"]
[WhiteElo "2326"]
[BlackElo "2116"]
[WhiteTeam "RUS"]
[BlackTeam "PAR"]
[WhiteClock "0:01:43"]
[BlackClock "0:01:41"]

1. d4 {[%clk 0:02:57]}  d5 {[%clk 0:02:49]} 2. e4 {[%clk 0:02:57]}  dxe4 {[%clk 0:02:48]} 3. Nc3 {[%clk 0:02:57]}  e5 {[%clk 0:02:48]} 4. Qh5 {[%clk 0:02:52]}  exd4 {[%clk 0:02:43]} 5. Bc4 {[%clk 0:02:51]}  Qf6 {[%clk 0:02:24]} 6. Nd5 {[%clk 0:02:32]}  Qd6 {[%clk 0:02:12]} 7. Bf4 {[%clk 0:02:23]}  g6 {[%clk 0:02:07]} 8. Bxd6 {[%clk 0:01:45]}  gxh5 {[%clk 0:02:07]} 9. Nxc7+ {[%clk 0:01:45]}  Kd8 {[%clk 0:02:02]} 10. Bxf8 {[%clk 0:01:45]}  Kxc7 {[%clk 0:01:41]} 11. Bg7 {[%clk 0:01:43]} 1-0

[Event "November 21 Early 2023"]
[Site "https://www.chess.com"]
[Date "2023.11.21"]
[Round "1"]
[White "mkllnd1517"]
[Black "Spata, German"]
[Result "0-1"]
[Board "162"]
[TimeControl "180+1"]
[BlackFideId "113026"]
[WhiteElo "2346"]
[BlackElo "2260"]
[BlackTeam "ARG"]
[WhiteClock "0:00:00"]
[BlackClock "0:00:20"]

1. Nf3 {[%clk 0:02:59]}  e6 {[%clk 0:02:52]} 2. b3 {[%clk 0:02:56]}  f5 {[%clk 0:02:44]} 3. Bb2 {[%clk 0:02:55]}  Nf6 {[%clk 0:02:44]} 4. c4 {[%clk 0:02:49]}  c6 {[%clk 0:02:42]} 5. d4 {[%clk 0:02:29]}  d5 {[%clk 0:02:42]} 6. e3 {[%clk 0:02:29]}  Bd6 {[%clk 0:02:40]} 7. Bd3 {[%clk 0:02:29]}  O-O {[%clk 0:02:38]} 8. O-O {[%clk 0:02:29]}  Ne4 {[%clk 0:02:38]} 9. Nbd2 {[%clk 0:02:27]}  Bd7 {[%clk 0:02:25]} 10. Ne5 {[%clk 0:02:23]}  Be8 {[%clk 0:02:25]} 11. f3 {[%clk 0:02:15]}  Nxd2 {[%clk 0:02:22]} 12. Qxd2 {[%clk 0:02:12]}  Nd7 {[%clk 0:02:21]} 13. Nxd7 {[%clk 0:01:49]}  Bxd7 {[%clk 0:02:20]} 14. Rae1 {[%clk 0:01:49]}  Qh4 {[%clk 0:02:12]} 15. g3 {[%clk 0:01:49]}  Qh6 {[%clk 0:02:09]} 16. Qg2 {[%clk 0:01:45]}  Rf7 {[%clk 0:01:34]} 17. e4 {[%clk 0:01:29]}  fxe4 {[%clk 0:01:33]} 18. fxe4 {[%clk 0:01:26]}  Rxf1+ {[%clk 0:01:33]} 19. Bxf1 {[%clk 0:01:12]}  Bb4 {[%clk 0:01:05]} 20. Re2 {[%clk 0:01:00]}  Qg5 {[%clk 0:00:59]} 21. a3 {[%clk 0:00:50]}  Ba5 {[%clk 0:00:54]} 22. exd5 {[%clk 0:00:23]}  cxd5 {[%clk 0:00:45]} 23. cxd5 {[%clk 0:00:22]}  Qxd5 {[%clk 0:00:38]} 24. Qxd5 {[%clk 0:00:22]}  exd5 {[%clk 0:00:39]} 25. Re7 {[%clk 0:00:20]}  Bc6 {[%clk 0:00:37]} 26. Bh3 {[%clk 0:00:13]}  Re8 {[%clk 0:00:27]} 27. Be6+ {[%clk 0:00:08]}  Kh8 {[%clk 0:00:26]} 28. Rxe8+ {[%clk 0:00:08]}  Bxe8 {[%clk 0:00:26]} 29. Bxd5 {[%clk 0:00:08]}  Bc6 {[%clk 0:00:20]} 30. Bxc6 {[%clk 0:00:09]}  bxc6 {[%clk 0:00:20]} 31. Kf2 {[%clk 0:00:09]}  Kg8 {[%clk 0:00:21]} 32. Ke3 {[%clk 0:00:09]}  Kf7 {[%clk 0:00:22]} 33. Ke4 {[%clk 0:00:10]}  Ke6 {[%clk 0:00:23]} 34. g4 {[%clk 0:00:06]}  Bd8 {[%clk 0:00:21]} 35. Bc1 {[%clk 0:00:06]}  Be7 {[%clk 0:00:20]} 36. a4 {[%clk 0:00:00]}  a6 {[%clk 0:00:20]} 0-1

[Event "November 21 Early 2023"]
[Site "https://www.chess.com"]
[Date "2023.11.21"]
[Round "1"]
[White "Papasimakopoulos, Alexandros"]
[Black "Koridze, Lile"]
[Result "0-1"]
[Board "163"]
[TimeControl "180+1"]
[WhiteFideId "4244125"]
[BlackFideId "13612514"]
[WhiteElo "2346"]
[BlackElo "2061"]
[WhiteTeam "GRE"]
[BlackTeam "GEO"]
[WhiteClock "0:00:17"]
[BlackClock "0:00:07"]

1. d4 {[%clk 0:02:10]}  Nf6 {[%clk 0:02:59]} 2. c4 {[%clk 0:02:09]}  e6 {[%clk 0:02:58]} 3. Nc3 {[%clk 0:02:06]}  Bb4 {[%clk 0:02:58]} 4. Qc2 {[%clk 0:02:01]}  O-O {[%clk 0:02:56]} 5. a3 {[%clk 0:01:55]}  Bxc3+ {[%clk 0:02:54]} 6. Qxc3 {[%clk 0:01:55]}  d5 {[%clk 0:02:54]} 7. Nf3 {[%clk 0:01:48]}  dxc4 {[%clk 0:02:51]} 8. Qxc4 {[%clk 0:01:23]}  b6 {[%clk 0:02:51]} 9. Bg5 {[%clk 0:01:22]}  Ba6 {[%clk 0:02:49]} 10. Qa4 {[%clk 0:01:22]}  Qd7 {[%clk 0:02:43]} 11. Qc2 {[%clk 0:01:21]}  Nd5 {[%clk 0:02:16]} 12. e4 {[%clk 0:01:06]}  Bxf1 {[%clk 0:02:00]} 13. Kxf1 {[%clk 0:01:04]}  Ne7 {[%clk 0:01:59]} 14. Rc1 {[%clk 0:01:03]}  Rc8 {[%clk 0:01:41]} 15. g3 {[%clk 0:00:47]}  c5 {[%clk 0:01:37]} 16. Bxe7 {[%clk 0:00:44]}  Qxe7 {[%clk 0:01:34]} 17. Kg2 {[%clk 0:00:44]}  Nd7 {[%clk 0:01:12]} 18. Rhd1 {[%clk 0:00:44]}  h6 {[%clk 0:01:10]} 19. d5 {[%clk 0:00:42]}  exd5 {[%clk 0:01:10]} 20. Rxd5 {[%clk 0:00:37]}  Nf6 {[%clk 0:01:09]} 21. Re5 {[%clk 0:00:37]}  Qc7 {[%clk 0:01:03]} 22. Qc4 {[%clk 0:00:30]}  Rd8 {[%clk 0:01:00]} 23. Rf5 {[%clk 0:00:29]}  Qe7 {[%clk 0:00:53]} 24. Re1 {[%clk 0:00:18]}  Re8 {[%clk 0:00:36]} 25. Re5 {[%clk 0:00:18]}  Qd7 {[%clk 0:00:35]} 26. h3 {[%clk 0:00:19]}  Rxe5 {[%clk 0:00:35]} 27. Nxe5 {[%clk 0:00:19]}  Qe7 {[%clk 0:00:34]} 28. Nf3 {[%clk 0:00:19]}  Rd8 {[%clk 0:00:33]} 29. Re2 {[%clk 0:00:19]}  Qd7 {[%clk 0:00:31]} 30. e5 {[%clk 0:00:19]}  Nd5 {[%clk 0:00:28]} 31. Rd2 {[%clk 0:00:20]}  Qe6 {[%clk 0:00:27]} 32. Kg1 {[%clk 0:00:18]}  Rd7 {[%clk 0:00:23]} 33. b4 {[%clk 0:00:19]}  cxb4 {[%clk 0:00:20]} 34. axb4 {[%clk 0:00:19]}  Rd8 {[%clk 0:00:07]} 35. b5 {[%clk 0:00:19]}  Rd7 {[%clk 0:00:07]} 36. Qc6 {[%clk 0:00:19]}  Rd8 {[%clk 0:00:07]} 37. Qxe6 {[%clk 0:00:18]}  fxe6 {[%clk 0:00:07]} 38. Ra2 {[%clk 0:00:19]}  Rd7 {[%clk 0:00:07]} 39. Nd4 {[%clk 0:00:18]}  Nc3 {[%clk 0:00:07]} 40. Rd2 {[%clk 0:00:17]}  Rxd4 {[%clk 0:00:06]} 41. Rc2 {[%clk 0:00:18]}  Nxb5 {[%clk 0:00:06]} 42. Rc8+ {[%clk 0:00:17]}  Kf7 {[%clk 0:00:06]} 43. Rb8 {[%clk 0:00:18]}  Nc3 {[%clk 0:00:05]} 44. Rb7+ {[%clk 0:00:18]}  Kg8 {[%clk 0:00:05]} 45. Rxa7 {[%clk 0:00:18]}  Re4 {[%clk 0:00:06]} 46. f4 {[%clk 0:00:18]}  b5 {[%clk 0:00:06]} 47. Kf2 {[%clk 0:00:18]}  b4 {[%clk 0:00:06]} 48. Rb7 {[%clk 0:00:18]}  Rc4 {[%clk 0:00:06]} 49. Kf3 {[%clk 0:00:19]}  Nd5 {[%clk 0:00:06]} 50. Kg4 {[%clk 0:00:18]}  Rc3 {[%clk 0:00:06]} 51. h4 {[%clk 0:00:18]}  b3 {[%clk 0:00:07]} 52. Kh5 {[%clk 0:00:17]}  Rxg3 {[%clk 0:00:07]} 53. f5 {[%clk 0:00:17]}  Nf4# {[%clk 0:00:07]} 0-1

[Event "November 21 Early 2023"]
[Site "https://www.chess.com"]
[Date "2023.11.21"]
[Round "1"]
[White "KorolDimitriy75"]
[Black "Nitin, S."]
[Result "0-1"]
[Board "164"]
[TimeControl "180+1"]
[BlackFideId "5018277"]
[WhiteElo "2341"]
[BlackElo "2359"]
[BlackTeam "IND"]
[WhiteClock "0:00:00"]
[BlackClock "0:00:54"]

1. d4 {[%clk 0:03:00]}  Nf6 {[%clk 0:02:59]} 2. c4 {[%clk 0:03:00]}  g6 {[%clk 0:02:59]} 3. Nc3 {[%clk 0:03:00]}  Bg7 {[%clk 0:02:57]} 4. e4 {[%clk 0:03:00]}  d6 {[%clk 0:02:57]} 5. Nf3 {[%clk 0:03:01]}  O-O {[%clk 0:02:57]} 6. Be2 {[%clk 0:03:02]}  Nbd7 {[%clk 0:02:40]} 7. O-O {[%clk 0:03:01]}  e5 {[%clk 0:02:40]} 8. Re1 {[%clk 0:03:02]}  h6 {[%clk 0:02:37]} 9. Rb1 {[%clk 0:02:59]}  Nh7 {[%clk 0:02:34]} 10. Bf1 {[%clk 0:02:22]}  c6 {[%clk 0:02:22]} 11. b4 {[%clk 0:01:51]}  Qe7 {[%clk 0:02:17]} 12. d5 {[%clk 0:01:33]}  c5 {[%clk 0:02:15]} 13. a3 {[%clk 0:00:48]}  f5 {[%clk 0:02:08]} 14. Nd2 {[%clk 0:00:43]}  Nhf6 {[%clk 0:02:01]} 15. f3 {[%clk 0:00:41]}  f4 {[%clk 0:01:58]} 16. Nb3 {[%clk 0:00:37]}  b6 {[%clk 0:01:58]} 17. bxc5 {[%clk 0:00:31]}  bxc5 {[%clk 0:01:58]} 18. Na5 {[%clk 0:00:30]}  g5 {[%clk 0:01:49]} 19. Nc6 {[%clk 0:00:31]}  Qf7 {[%clk 0:01:49]} 20. Nb5 {[%clk 0:00:26]}  Ne8 {[%clk 0:01:49]} 21. Nd8 {[%clk 0:00:24]}  Qg6 {[%clk 0:01:43]} 22. Ne6 {[%clk 0:00:24]}  a6 {[%clk 0:01:38]} 23. Nxf8 {[%clk 0:00:17]}  Nxf8 {[%clk 0:01:39]} 24. Nc3 {[%clk 0:00:16]}  g4 {[%clk 0:01:36]} 25. Kh1 {[%clk 0:00:09]}  Nh7 {[%clk 0:01:25]} 26. Na4 {[%clk 0:00:09]}  Nef6 {[%clk 0:01:01]} 27. Nb6 {[%clk 0:00:08]}  Rb8 {[%clk 0:01:02]} 28. Qd2 {[%clk 0:00:07]}  Ng5 {[%clk 0:00:59]} 29. Be2 {[%clk 0:00:06]}  g3 {[%clk 0:00:57]} 30. Bb2 {[%clk 0:00:04]}  Qh5 {[%clk 0:00:55]} 31. h3 {[%clk 0:00:03]}  Bxh3 {[%clk 0:00:55]} 32. Kg1 {[%clk 0:00:02]}  Bxg2 {[%clk 0:00:54]} 33. Kxg2 {[%clk 0:00:00]}  Qh2+ {[%clk 0:00:54]} 0-1

[Event "November 21 Early 2023"]
[Site "https://www.chess.com"]
[Date "2023.11.21"]
[Round "1"]
[White "Al-Tarboush, Ward"]
[Black "Viskelis, Darius"]
[Result "1-0"]
[Board "165"]
[TimeControl "180+1"]
[WhiteFideId "7601450"]
[BlackFideId "12800830"]
[WhiteElo "2280"]
[BlackElo "1859"]
[WhiteTeam "NOR"]
[BlackTeam "LTU"]
[WhiteClock "0:01:10"]
[BlackClock "0:00:07"]

1. e4 {[%clk 0:03:00]}  e5 {[%clk 0:02:58]} 2. Nf3 {[%clk 0:03:00]}  Nf6 {[%clk 0:02:59]} 3. d4 {[%clk 0:03:00]}  Nxe4 {[%clk 0:02:58]} 4. Bd3 {[%clk 0:02:59]}  d5 {[%clk 0:02:58]} 5. Nxe5 {[%clk 0:02:59]}  Bb4+ {[%clk 0:02:53]} 6. c3 {[%clk 0:02:55]}  Be7 {[%clk 0:02:53]} 7. O-O {[%clk 0:02:52]}  O-O {[%clk 0:02:52]} 8. Re1 {[%clk 0:02:50]}  Bf5 {[%clk 0:02:46]} 9. Nd2 {[%clk 0:02:42]}  Nd6 {[%clk 0:02:36]} 10. Bxf5 {[%clk 0:02:40]}  Nxf5 {[%clk 0:02:37]} 11. Qb3 {[%clk 0:02:35]}  b6 {[%clk 0:02:11]} 12. Ndf3 {[%clk 0:02:33]}  f6 {[%clk 0:01:58]} 13. Nd3 {[%clk 0:02:24]}  c6 {[%clk 0:01:50]} 14. Bf4 {[%clk 0:02:24]}  Na6 {[%clk 0:01:41]} 15. Re6 {[%clk 0:02:23]}  Bd6 {[%clk 0:01:29]} 16. Bxd6 {[%clk 0:02:09]}  Nxd6 {[%clk 0:01:28]} 17. Nb4 {[%clk 0:02:05]}  Nxb4 {[%clk 0:01:23]} 18. Qxb4 {[%clk 0:02:06]}  Ne4 {[%clk 0:01:19]} 19. Rxc6 {[%clk 0:01:50]}  Qd7 {[%clk 0:01:19]} 20. Qb5 {[%clk 0:01:50]}  a6 {[%clk 0:01:09]} 21. Qxb6 {[%clk 0:01:50]}  Rfb8 {[%clk 0:01:07]} 22. Qc7 {[%clk 0:01:48]}  Qxc7 {[%clk 0:01:05]} 23. Rxc7 {[%clk 0:01:49]}  Rxb2 {[%clk 0:01:04]} 24. Re1 {[%clk 0:01:47]}  Rxa2 {[%clk 0:00:59]} 25. c4 {[%clk 0:01:47]}  Rb8 {[%clk 0:00:28]} 26. cxd5 {[%clk 0:01:42]}  Nd6 {[%clk 0:00:28]} 27. h4 {[%clk 0:01:39]}  Rbb2 {[%clk 0:00:24]} 28. Rd7 {[%clk 0:01:35]}  Rxf2 {[%clk 0:00:12]} 29. Rxd6 {[%clk 0:01:35]}  Rxg2+ {[%clk 0:00:12]} 30. Kh1 {[%clk 0:01:36]}  Rgf2 {[%clk 0:00:11]} 31. Rd7 {[%clk 0:01:36]}  h5 {[%clk 0:00:09]} 32. Rg1 {[%clk 0:01:08]}  Rxf3 {[%clk 0:00:07]} 33. Rdxg7+ {[%clk 0:01:08]}  Kf8 {[%clk 0:00:07]} 34. Rg8+ {[%clk 0:01:08]}  Ke7 {[%clk 0:00:07]} 35. R1g7+ {[%clk 0:01:09]}  Kd6 {[%clk 0:00:07]} 36. Rd8# {[%clk 0:01:10]} 1-0

[Event "November 21 Early 2023"]
[Site "https://www.chess.com"]
[Date "2023.11.21"]
[Round "1"]
[White "Pastar, Slaven"]
[Black "Napoli, Nicolo"]
[Result "1-0"]
[Board "167"]
[TimeControl "180+1"]
[WhiteFideId "14402718"]
[BlackFideId "813702"]
[WhiteElo "2230"]
[BlackElo "2306"]
[WhiteTeam "BIH"]
[BlackTeam "ITA"]
[WhiteClock "0:00:46"]
[BlackClock "0:00:06"]

1. Nf3 {[%clk 0:02:56]}  d5 {[%clk 0:02:52]} 2. b3 {[%clk 0:02:56]}  Nf6 {[%clk 0:02:51]} 3. Bb2 {[%clk 0:02:57]}  e6 {[%clk 0:02:52]} 4. e3 {[%clk 0:02:57]}  c6 {[%clk 0:02:51]} 5. c4 {[%clk 0:02:58]}  Bd6 {[%clk 0:02:51]} 6. Be2 {[%clk 0:02:59]}  O-O {[%clk 0:02:50]} 7. O-O {[%clk 0:02:59]}  Nbd7 {[%clk 0:02:49]} 8. Nc3 {[%clk 0:03:00]}  b6 {[%clk 0:02:49]} 9. Rc1 {[%clk 0:03:01]}  Bb7 {[%clk 0:02:46]} 10. Qc2 {[%clk 0:03:01]}  e5 {[%clk 0:02:45]} 11. Qb1 {[%clk 0:02:57]}  e4 {[%clk 0:02:40]} 12. Nd4 {[%clk 0:02:56]}  Ne5 {[%clk 0:02:35]} 13. f4 {[%clk 0:02:49]}  exf3 {[%clk 0:02:34]} 14. Nxf3 {[%clk 0:02:49]}  Ng6 {[%clk 0:02:30]} 15. Bd3 {[%clk 0:02:43]}  dxc4 {[%clk 0:02:23]} 16. Bxc4 {[%clk 0:02:33]}  c5 {[%clk 0:02:23]} 17. Ne2 {[%clk 0:02:19]}  Bxf3 {[%clk 0:02:10]} 18. Rxf3 {[%clk 0:02:16]}  Ne5 {[%clk 0:02:10]} 19. Rh3 {[%clk 0:02:07]}  Ng6 {[%clk 0:02:05]} 20. Qf5 {[%clk 0:01:57]}  Qd7 {[%clk 0:01:38]} 21. Rf1 {[%clk 0:01:51]}  Rad8 {[%clk 0:01:29]} 22. Bxf6 {[%clk 0:01:44]}  Qxf5 {[%clk 0:01:24]} 23. Rxf5 {[%clk 0:01:45]}  gxf6 {[%clk 0:01:24]} 24. Rfh5 {[%clk 0:01:35]}  Be5 {[%clk 0:01:14]} 25. d3 {[%clk 0:01:33]}  Rb8 {[%clk 0:01:05]} 26. a4 {[%clk 0:01:33]}  Rbe8 {[%clk 0:00:59]} 27. Rxh7 {[%clk 0:01:30]}  f5 {[%clk 0:00:53]} 28. R7h6 {[%clk 0:01:25]}  Kg7 {[%clk 0:00:51]} 29. Rh7+ {[%clk 0:01:23]}  Kf6 {[%clk 0:00:49]} 30. Rf3 {[%clk 0:01:12]}  Rh8 {[%clk 0:00:23]} 31. Rxf7+ {[%clk 0:01:11]}  Kg5 {[%clk 0:00:23]} 32. R7xf5+ {[%clk 0:01:05]}  Kh6 {[%clk 0:00:21]} 33. Rh3+ {[%clk 0:01:04]}  Kg7 {[%clk 0:00:18]} 34. Rf7+ {[%clk 0:01:05]}  Kg8 {[%clk 0:00:19]} 35. Rfh7+ {[%clk 0:00:55]}  Kf8 {[%clk 0:00:18]} 36. Rf3+ {[%clk 0:00:53]}  Bf4 {[%clk 0:00:09]} 37. Rf7+ {[%clk 0:00:51]}  Kg8 {[%clk 0:00:09]} 38. R7xf4+ {[%clk 0:00:51]}  Kg7 {[%clk 0:00:08]} 39. Rf7+ {[%clk 0:00:52]}  Kh6 {[%clk 0:00:07]} 40. Rh3+ {[%clk 0:00:50]}  Kg5 {[%clk 0:00:08]} 41. Rg3+ {[%clk 0:00:48]}  Kh6 {[%clk 0:00:08]} 42. Rf6 {[%clk 0:00:47]}  Rhg8 {[%clk 0:00:06]} 43. Bxg8 {[%clk 0:00:47]}  Rxg8 {[%clk 0:00:06]} 44. Nf4 {[%clk 0:00:46]}  Kh7 {[%clk 0:00:06]} 1-0

[Event "November 21 Early 2023"]
[Site "https://www.chess.com"]
[Date "2023.11.21"]
[Round "1"]
[White "Gontcharov, Vladislav"]
[Black "Fernandez Siles, Luis"]
[Result "1-0"]
[Board "169"]
[TimeControl "180+1"]
[WhiteFideId "4123492"]
[BlackFideId "2209420"]
[WhiteElo "2420"]
[BlackElo "2195"]
[WhiteTeam "RUS"]
[BlackTeam "ESP"]
[WhiteClock "0:00:17"]
[BlackClock "0:00:00"]

1. d4 {[%clk 0:02:58]}  Nf6 {[%clk 0:02:59]} 2. c4 {[%clk 0:02:57]}  g6 {[%clk 0:02:59]} 3. Nc3 {[%clk 0:02:55]}  d5 {[%clk 0:02:59]} 4. Nf3 {[%clk 0:02:49]}  Bg7 {[%clk 0:02:59]} 5. Bg5 {[%clk 0:02:46]}  Ne4 {[%clk 0:02:57]} 6. cxd5 {[%clk 0:02:46]}  Nxg5 {[%clk 0:02:56]} 7. Nxg5 {[%clk 0:02:46]}  e6 {[%clk 0:02:56]} 8. Nf3 {[%clk 0:02:46]}  exd5 {[%clk 0:02:54]} 9. e3 {[%clk 0:02:45]}  c6 {[%clk 0:02:52]} 10. Be2 {[%clk 0:02:44]}  O-O {[%clk 0:02:51]} 11. O-O {[%clk 0:02:42]}  Nd7 {[%clk 0:02:48]} 12. b4 {[%clk 0:02:42]}  a6 {[%clk 0:02:43]} 13. a4 {[%clk 0:02:41]}  Nf6 {[%clk 0:02:36]} 14. b5 {[%clk 0:02:34]}  axb5 {[%clk 0:02:31]} 15. axb5 {[%clk 0:02:34]}  Rxa1 {[%clk 0:02:30]} 16. Qxa1 {[%clk 0:02:34]}  Bg4 {[%clk 0:01:55]} 17. bxc6 {[%clk 0:02:32]}  bxc6 {[%clk 0:01:56]} 18. Ne5 {[%clk 0:01:44]}  Bxe2 {[%clk 0:01:47]} 19. Nxe2 {[%clk 0:01:45]}  c5 {[%clk 0:01:46]} 20. Rd1 {[%clk 0:01:39]}  c4 {[%clk 0:01:44]} 21. Nc3 {[%clk 0:01:33]}  Qa8 {[%clk 0:01:37]} 22. h3 {[%clk 0:00:57]}  Rb8 {[%clk 0:01:27]} 23. Qxa8 {[%clk 0:00:50]}  Rxa8 {[%clk 0:01:27]} 24. Rb1 {[%clk 0:00:48]}  Ra3 {[%clk 0:01:11]} 25. Nb5 {[%clk 0:00:45]}  Rb3 {[%clk 0:00:58]} 26. Rxb3 {[%clk 0:00:42]}  cxb3 {[%clk 0:00:58]} 27. Nd3 {[%clk 0:00:40]}  Bf8 {[%clk 0:00:51]} 28. Kf1 {[%clk 0:00:39]}  Ne4 {[%clk 0:00:47]} 29. Ke2 {[%clk 0:00:37]}  Be7 {[%clk 0:00:25]} 30. f3 {[%clk 0:00:30]}  Ng3+ {[%clk 0:00:19]} 31. Kf2 {[%clk 0:00:20]}  Bh4 {[%clk 0:00:11]} 32. Kg1 {[%clk 0:00:20]}  Bg5 {[%clk 0:00:10]} 33. Kf2 {[%clk 0:00:20]}  Bh4 {[%clk 0:00:10]} 34. Kg1 {[%clk 0:00:20]}  Bg5 {[%clk 0:00:11]} 35. f4 {[%clk 0:00:20]}  Bh4 {[%clk 0:00:06]} 36. Nc3 {[%clk 0:00:20]}  Ne4 {[%clk 0:00:06]} 37. Nxd5 {[%clk 0:00:20]}  Bf2+ {[%clk 0:00:00]} 38. Kf1 {[%clk 0:00:17]} 1-0

[Event "November 21 Early 2023"]
[Site "https://www.chess.com"]
[Date "2023.11.21"]
[Round "1"]
[White "Principe, Gerson"]
[Black "Goswami, Vedant"]
[Result "1-0"]
[Board "171"]
[TimeControl "180+1"]
[WhiteFideId "3804550"]
[BlackFideId "5003725"]
[WhiteElo "2186"]
[BlackElo "2011"]
[WhiteTeam "PER"]
[BlackTeam "IND"]
[WhiteClock "0:00:59"]
[BlackClock "0:00:43"]

1. d4 {[%clk 0:03:00]}  Nf6 {[%clk 0:02:56]} 2. Nf3 {[%clk 0:03:01]}  e6 {[%clk 0:02:54]} 3. c4 {[%clk 0:02:58]}  Bb4+ {[%clk 0:02:51]} 4. Bd2 {[%clk 0:02:57]}  Qe7 {[%clk 0:02:50]} 5. Nc3 {[%clk 0:02:56]}  O-O {[%clk 0:02:41]} 6. e3 {[%clk 0:02:39]}  d6 {[%clk 0:02:34]} 7. Be2 {[%clk 0:02:34]}  Bxc3 {[%clk 0:02:29]} 8. Bxc3 {[%clk 0:02:33]}  Ne4 {[%clk 0:02:29]} 9. Rc1 {[%clk 0:02:31]}  Nc6 {[%clk 0:02:27]} 10. O-O {[%clk 0:02:30]}  Nxc3 {[%clk 0:02:24]} 11. Rxc3 {[%clk 0:02:28]}  e5 {[%clk 0:02:25]} 12. d5 {[%clk 0:02:25]}  Nb8 {[%clk 0:02:21]} 13. b4 {[%clk 0:02:20]}  a5 {[%clk 0:02:17]} 14. a3 {[%clk 0:02:19]}  axb4 {[%clk 0:02:16]} 15. axb4 {[%clk 0:02:20]}  Na6 {[%clk 0:02:16]} 16. Qb3 {[%clk 0:02:19]}  Bg4 {[%clk 0:02:13]} 17. Rfc1 {[%clk 0:02:16]}  c5 {[%clk 0:01:52]} 18. dxc6 {[%clk 0:02:11]}  bxc6 {[%clk 0:01:52]} 19. b5 {[%clk 0:01:46]}  Nc5 {[%clk 0:01:49]} 20. Qd1 {[%clk 0:01:47]}  Rfc8 {[%clk 0:01:27]} 21. h3 {[%clk 0:01:33]}  Bh5 {[%clk 0:01:22]} 22. bxc6 {[%clk 0:01:13]}  Rxc6 {[%clk 0:01:16]} 23. Nxe5 {[%clk 0:01:12]}  Qxe5 {[%clk 0:01:15]} 24. Bxh5 {[%clk 0:01:11]}  Ne4 {[%clk 0:01:05]} 25. R3c2 {[%clk 0:01:10]}  g6 {[%clk 0:00:57]} 26. Bf3 {[%clk 0:01:08]}  Rac8 {[%clk 0:00:54]} 27. Qd4 {[%clk 0:01:01]}  Rc5 {[%clk 0:00:43]} 28. Qxe4 {[%clk 0:00:59]} 1-0

[Event "November 21 Early 2023"]
[Site "https://www.chess.com"]
[Date "2023.11.21"]
[Round "1"]
[White "Mohammed, Zozek Salah Mohammed"]
[Black "Vlassov, Nikolai"]
[Result "1-0"]
[Board "172"]
[TimeControl "180+1"]
[WhiteFideId "4803361"]
[BlackFideId "4103360"]
[WhiteElo "2211"]
[BlackElo "2324"]
[WhiteTeam "IRQ"]
[BlackTeam "FID"]
[WhiteClock "0:00:19"]
[BlackClock "0:00:00"]

1. d4 {[%clk 0:01:44]}  Nf6 {[%clk 0:02:57]} 2. Nf3 {[%clk 0:01:45]}  e6 {[%clk 0:02:57]} 3. g3 {[%clk 0:01:46]}  b5 {[%clk 0:02:57]} 4. Bg2 {[%clk 0:01:46]}  Bb7 {[%clk 0:02:57]} 5. O-O {[%clk 0:01:47]}  c5 {[%clk 0:02:57]} 6. a4 {[%clk 0:01:48]}  b4 {[%clk 0:02:57]} 7. Bg5 {[%clk 0:01:45]}  Na6 {[%clk 0:02:55]} 8. c3 {[%clk 0:01:41]}  bxc3 {[%clk 0:02:53]} 9. Nxc3 {[%clk 0:01:42]}  cxd4 {[%clk 0:02:51]} 10. Nxd4 {[%clk 0:01:40]}  Bxg2 {[%clk 0:02:51]} 11. Kxg2 {[%clk 0:01:41]}  Be7 {[%clk 0:02:50]} 12. e4 {[%clk 0:01:30]}  Qc7 {[%clk 0:02:24]} 13. Ndb5 {[%clk 0:01:27]}  Qc6 {[%clk 0:02:23]} 14. Bxf6 {[%clk 0:01:23]}  Bxf6 {[%clk 0:02:15]} 15. Nd6+ {[%clk 0:01:08]}  Ke7 {[%clk 0:02:15]} 16. Ncb5 {[%clk 0:01:05]}  Bxb2 {[%clk 0:02:04]} 17. Rb1 {[%clk 0:01:01]}  Be5 {[%clk 0:02:04]} 18. Rc1 {[%clk 0:01:01]}  Nc5 {[%clk 0:01:53]} 19. Nc4 {[%clk 0:00:50]}  Bb8 {[%clk 0:01:27]} 20. f3 {[%clk 0:00:49]}  Rc8 {[%clk 0:01:17]} 21. Ne3 {[%clk 0:00:45]}  a6 {[%clk 0:01:12]} 22. Nd4 {[%clk 0:00:44]}  Qxa4 {[%clk 0:01:09]} 23. Qxa4 {[%clk 0:00:42]}  Nxa4 {[%clk 0:01:09]} 24. Rxc8 {[%clk 0:00:43]}  Nb6 {[%clk 0:01:02]} 25. Rh8 {[%clk 0:00:41]}  Be5 {[%clk 0:01:01]} 26. Rxa8 {[%clk 0:00:39]}  Bxd4 {[%clk 0:01:01]} 27. Rxa6 {[%clk 0:00:36]}  Bxe3 {[%clk 0:01:01]} 28. Rb1 {[%clk 0:00:35]}  Nc4 {[%clk 0:00:58]} 29. Rd1 {[%clk 0:00:35]}  Bh6 {[%clk 0:00:35]} 30. Rd3 {[%clk 0:00:31]}  g5 {[%clk 0:00:33]} 31. Ra7 {[%clk 0:00:29]}  Ne5 {[%clk 0:00:32]} 32. Rb3 {[%clk 0:00:28]}  Kf6 {[%clk 0:00:29]} 33. Rb5 {[%clk 0:00:27]}  d6 {[%clk 0:00:19]} 34. Rbb7 {[%clk 0:00:26]}  Kg6 {[%clk 0:00:19]} 35. Ra6 {[%clk 0:00:24]}  Nc4 {[%clk 0:00:16]} 36. Rc6 {[%clk 0:00:23]}  d5 {[%clk 0:00:10]} 37. exd5 {[%clk 0:00:22]}  Ne3+ {[%clk 0:00:10]} 38. Kh1 {[%clk 0:00:21]}  Nxd5 {[%clk 0:00:11]} 39. Rd7 {[%clk 0:00:20]}  Nf6 {[%clk 0:00:09]} 40. Ra7 {[%clk 0:00:19]}  Nd5 {[%clk 0:00:00]} 41. Rd6 {[%clk 0:00:19]} 1-0

[Event "November 21 Early 2023"]
[Site "https://www.chess.com"]
[Date "2023.11.21"]
[Round "1"]
[White "Gubajdullin, Alexei"]
[Black "Eggleston, Thomas A"]
[Result "1-0"]
[Board "175"]
[TimeControl "180+1"]
[WhiteFideId "4141202"]
[BlackFideId "412139"]
[WhiteElo "2280"]
[BlackElo "2169"]
[WhiteTeam "RUS"]
[BlackTeam "ENG"]
[WhiteClock "0:02:31"]
[BlackClock "0:01:57"]

1. d4 {[%clk 0:02:59]}  e6 {[%clk 0:03:00]} 2. Nf3 {[%clk 0:02:58]}  f5 {[%clk 0:03:00]} 3. Bf4 {[%clk 0:02:57]}  Nf6 {[%clk 0:02:59]} 4. e3 {[%clk 0:02:57]}  b6 {[%clk 0:02:55]} 5. Be2 {[%clk 0:02:57]}  Bb7 {[%clk 0:02:55]} 6. O-O {[%clk 0:02:57]}  Be7 {[%clk 0:02:56]} 7. h3 {[%clk 0:02:57]}  O-O {[%clk 0:02:52]} 8. c4 {[%clk 0:02:53]}  Ne4 {[%clk 0:02:52]} 9. Qc2 {[%clk 0:02:53]}  Bf6 {[%clk 0:02:51]} 10. Nc3 {[%clk 0:02:50]}  Nxc3 {[%clk 0:02:43]} 11. Qxc3 {[%clk 0:02:50]}  d6 {[%clk 0:02:43]} 12. b4 {[%clk 0:02:49]}  Nd7 {[%clk 0:02:23]} 13. Rac1 {[%clk 0:02:46]}  Qe7 {[%clk 0:02:10]} 14. Qb3 {[%clk 0:02:44]}  c5 {[%clk 0:02:07]} 15. bxc5 {[%clk 0:02:35]}  bxc5 {[%clk 0:01:57]} 16. Qxb7 {[%clk 0:02:31]} 1-0